[Event "Titled Tuesday Blitz June 28 Early 2022"]
[White "Thiel, Thomas"]
[Black "Petrova, Irina"]
[WhiteFideId "4615964"]
[BlackFideId "14124122"]
[WhiteElo "2240"]
[BlackElo "1993"]
[Result "0-1"]
[Round "10"]
[TimeControl "180+1"]
[Date "2022.06.28"]
[WhiteClock "0:00:02"]
[BlackClock "0:00:20"]

1. e4 {[%clk 0:03:00]}  d6 {[%clk 0:03:00]} 2. d4 {[%clk 0:02:59]}  Nf6 {[%clk 0:03:01]} 3. Nc3 {[%clk 0:02:58]}  e5 {[%clk 0:03:01]} 4. Nf3 {[%clk 0:02:56]}  Nbd7 {[%clk 0:03:01]} 5. Bc4 {[%clk 0:02:56]}  Be7 {[%clk 0:03:00]} 6. a4 {[%clk 0:02:55]}  O-O {[%clk 0:03:00]} 7. O-O {[%clk 0:02:54]}  c6 {[%clk 0:03:00]} 8. Re1 {[%clk 0:02:52]}  h6 {[%clk 0:03:01]} 9. h3 {[%clk 0:02:50]}  Re8 {[%clk 0:03:01]} 10. dxe5 {[%clk 0:02:43]}  dxe5 {[%clk 0:02:59]} 11. Nh4 {[%clk 0:02:42]}  Bf8 {[%clk 0:02:53]} 12. Ng6 {[%clk 0:02:40]}  Bb4 {[%clk 0:02:42]} 13. Qf3 {[%clk 0:02:26]}  Nb6 {[%clk 0:02:40]} 14. Bb3 {[%clk 0:02:24]}  Be6 {[%clk 0:02:39]} 15. Bxe6 {[%clk 0:02:22]}  Rxe6 {[%clk 0:02:40]} 16. Nh4 {[%clk 0:02:19]}  Nc4 {[%clk 0:02:20]} 17. Nf5 {[%clk 0:02:16]}  Nh7 {[%clk 0:01:50]} 18. Qg3 {[%clk 0:02:03]}  Rg6 {[%clk 0:01:49]} 19. Qf3 {[%clk 0:02:01]}  Ng5 {[%clk 0:01:44]} 20. Bxg5 {[%clk 0:01:59]}  Qxg5 {[%clk 0:01:45]} 21. Rab1 {[%clk 0:01:49]}  Rd8 {[%clk 0:01:39]} 22. Ng3 {[%clk 0:01:37]}  Nd2 {[%clk 0:01:35]} 23. Qf5 {[%clk 0:01:33]}  Nxb1 {[%clk 0:01:33]} 24. Rxb1 {[%clk 0:01:18]}  Rgd6 {[%clk 0:01:22]} 25. Qf3 {[%clk 0:01:08]}  Bc5 {[%clk 0:01:16]} 26. Kh2 {[%clk 0:01:05]}  Rf6 {[%clk 0:01:11]} 27. Nf5 {[%clk 0:00:43]}  g6 {[%clk 0:01:02]} 28. h4 {[%clk 0:00:42]}  Qf4+ {[%clk 0:00:59]} 29. Qxf4 {[%clk 0:00:41]}  exf4 {[%clk 0:00:59]} 30. Nxh6+ {[%clk 0:00:40]}  Kg7 {[%clk 0:00:59]} 31. Ng4 {[%clk 0:00:41]}  Rfd6 {[%clk 0:00:56]} 32. e5 {[%clk 0:00:38]}  Rd4 {[%clk 0:00:33]} 33. f3 {[%clk 0:00:36]}  Be7 {[%clk 0:00:31]} 34. b3 {[%clk 0:00:33]}  Bxh4 {[%clk 0:00:30]} 35. Ne2 {[%clk 0:00:30]}  Bg3+ {[%clk 0:00:29]} 36. Nxg3 {[%clk 0:00:28]}  fxg3+ {[%clk 0:00:30]} 37. Kxg3 {[%clk 0:00:28]}  Rd2 {[%clk 0:00:30]} 38. c4 {[%clk 0:00:26]}  R8d3 {[%clk 0:00:29]} 39. Rh1 {[%clk 0:00:23]}  Rxb3 {[%clk 0:00:28]} 40. Nf6 {[%clk 0:00:22]}  g5 {[%clk 0:00:26]} 41. Rh7+ {[%clk 0:00:16]}  Kg6 {[%clk 0:00:27]} 42. Rh8 {[%clk 0:00:14]}  Rbb2 {[%clk 0:00:26]} 43. Rh2 {[%clk 0:00:08]}  Kf5 {[%clk 0:00:25]} 44. Ng4 {[%clk 0:00:07]}  Ra2 {[%clk 0:00:24]} 45. Ne3+ {[%clk 0:00:06]}  Kxe5 {[%clk 0:00:23]} 46. Rh7 {[%clk 0:00:05]}  Kd4 {[%clk 0:00:20]} 47. Nf5+ {[%clk 0:00:04]}  Kxc4 {[%clk 0:00:20]} 48. Ne3+ {[%clk 0:00:03]}  Kd3 {[%clk 0:00:20]} 49. Nf5 {[%clk 0:00:02]}  Rxg2+ {[%clk 0:00:20]} 0-1


[Site "https://www.chess.com"]

[Event "Titled Tuesday Blitz June 28 Early 2022"]
[White "Thorhallsson, Simon"]
[Black "Silva Lucena, Cristian"]
[WhiteFideId "2310090"]
[BlackFideId "2232588"]
[WhiteElo "2137"]
[BlackElo "2223"]
[Result "1-0"]
[Round "10"]
[TimeControl "180+1"]
[Date "2022.06.28"]
[WhiteClock "0:00:06"]
[BlackClock "0:00:11"]

1. e4 {[%clk 0:03:00]}  c5 {[%clk 0:02:59]} 2. Nf3 {[%clk 0:02:59]}  d6 {[%clk 0:02:59]} 3. d4 {[%clk 0:03:00]}  cxd4 {[%clk 0:03:00]} 4. Nxd4 {[%clk 0:03:01]}  Nf6 {[%clk 0:03:00]} 5. Nc3 {[%clk 0:03:01]}  e6 {[%clk 0:03:00]} 6. g3 {[%clk 0:02:59]}  Be7 {[%clk 0:03:00]} 7. Bg2 {[%clk 0:02:59]}  O-O {[%clk 0:03:00]} 8. O-O {[%clk 0:02:59]}  Nc6 {[%clk 0:03:00]} 9. Be3 {[%clk 0:02:58]}  Nxd4 {[%clk 0:02:55]} 10. Bxd4 {[%clk 0:02:58]}  e5 {[%clk 0:02:55]} 11. Be3 {[%clk 0:02:56]}  h6 {[%clk 0:02:56]} 12. Nd5 {[%clk 0:02:51]}  Nxd5 {[%clk 0:02:53]} 13. exd5 {[%clk 0:02:52]}  Bg5 {[%clk 0:02:22]} 14. Qd2 {[%clk 0:02:47]}  Bxe3 {[%clk 0:02:21]} 15. Qxe3 {[%clk 0:02:48]}  Qb6 {[%clk 0:02:18]} 16. Qxb6 {[%clk 0:02:37]}  axb6 {[%clk 0:02:18]} 17. c4 {[%clk 0:02:37]}  Bd7 {[%clk 0:02:15]} 18. Rfc1 {[%clk 0:02:30]}  f5 {[%clk 0:02:08]} 19. Rc3 {[%clk 0:02:24]}  Rfc8 {[%clk 0:02:03]} 20. Rb3 {[%clk 0:02:16]}  Ra6 {[%clk 0:02:01]} 21. Bf1 {[%clk 0:02:16]}  Rc5 {[%clk 0:01:58]} 22. Re3 {[%clk 0:02:01]}  Ra4 {[%clk 0:01:46]} 23. a3 {[%clk 0:01:36]}  Kf7 {[%clk 0:01:42]} 24. Rb3 {[%clk 0:01:33]}  Ra6 {[%clk 0:01:41]} 25. Re3 {[%clk 0:01:33]}  Ra7 {[%clk 0:01:34]} 26. Rae1 {[%clk 0:01:21]}  g5 {[%clk 0:01:31]} 27. f4 {[%clk 0:01:10]}  e4 {[%clk 0:01:31]} 28. Rb3 {[%clk 0:01:04]}  Ra6 {[%clk 0:01:26]} 29. Kf2 {[%clk 0:01:04]}  Kf6 {[%clk 0:01:24]} 30. Ke3 {[%clk 0:01:03]}  Be8 {[%clk 0:01:09]} 31. Kd4 {[%clk 0:01:01]}  Bd7 {[%clk 0:01:06]} 32. Rb4 {[%clk 0:00:42]}  g4 {[%clk 0:00:48]} 33. Re3 {[%clk 0:00:42]}  Ba4 {[%clk 0:00:39]} 34. Be2 {[%clk 0:00:32]}  h5 {[%clk 0:00:39]} 35. Rc3 {[%clk 0:00:30]}  Kg6 {[%clk 0:00:33]} 36. Ke3 {[%clk 0:00:27]}  h4 {[%clk 0:00:29]} 37. Kd2 {[%clk 0:00:26]}  Kh5 {[%clk 0:00:20]} 38. Bd1 {[%clk 0:00:25]}  Bxd1 {[%clk 0:00:17]} 39. Kxd1 {[%clk 0:00:26]}  hxg3 {[%clk 0:00:16]} 40. hxg3 {[%clk 0:00:27]}  Kg6 {[%clk 0:00:16]} 41. Kd2 {[%clk 0:00:25]}  Kf6 {[%clk 0:00:13]} 42. Ke3 {[%clk 0:00:25]}  b5 {[%clk 0:00:13]} 43. Rxb5 {[%clk 0:00:23]}  Rxb5 {[%clk 0:00:11]} 44. cxb5 {[%clk 0:00:24]}  Ra8 {[%clk 0:00:10]} 45. Rc7 {[%clk 0:00:24]}  Rh8 {[%clk 0:00:11]} 46. Rxb7 {[%clk 0:00:23]}  Rh3 {[%clk 0:00:11]} 47. Kf2 {[%clk 0:00:12]}  Rh2+ {[%clk 0:00:11]} 48. Kf1 {[%clk 0:00:11]}  Rxb2 {[%clk 0:00:11]} 49. b6 {[%clk 0:00:10]}  e3 {[%clk 0:00:09]} 50. Rb8 {[%clk 0:00:10]}  Ke7 {[%clk 0:00:07]} 51. b7 {[%clk 0:00:08]}  Kd7 {[%clk 0:00:04]} 52. Rh8 {[%clk 0:00:07]}  Kc7 {[%clk 0:00:04]} 53. b8=Q+ {[%clk 0:00:04]}  Rxb8 {[%clk 0:00:04]} 54. Rxb8 {[%clk 0:00:05]}  Kxb8 {[%clk 0:00:05]} 55. Ke2 {[%clk 0:00:06]}  Kc7 {[%clk 0:00:06]} 56. Kxe3 {[%clk 0:00:07]}  Kb6 {[%clk 0:00:07]} 57. Kd3 {[%clk 0:00:07]}  Kb5 {[%clk 0:00:07]} 58. Kc3 {[%clk 0:00:05]}  Kc5 {[%clk 0:00:07]} 59. a4 {[%clk 0:00:04]}  Kxd5 {[%clk 0:00:08]} 60. a5 {[%clk 0:00:03]}  Kc5 {[%clk 0:00:08]} 61. a6 {[%clk 0:00:03]}  Kb6 {[%clk 0:00:09]} 62. Kc4 {[%clk 0:00:03]}  Kxa6 {[%clk 0:00:09]} 63. Kd5 {[%clk 0:00:04]}  Kb5 {[%clk 0:00:09]} 64. Kxd6 {[%clk 0:00:04]}  Kc4 {[%clk 0:00:10]} 65. Ke5 {[%clk 0:00:05]}  Kd3 {[%clk 0:00:10]} 66. Kxf5 {[%clk 0:00:05]}  Ke3 {[%clk 0:00:11]} 67. Kxg4 {[%clk 0:00:06]} 1-0


[Site "https://www.chess.com"]

[Event "Titled Tuesday Blitz June 28 Early 2022"]
[White "Vainio, Ville"]
[Black "Bintang, Rasyid A. Hidayat"]
[WhiteFideId "507270"]
[BlackFideId "7105355"]
[WhiteElo "2242"]
[BlackElo "2374"]
[Result "0-1"]
[Round "10"]
[TimeControl "180+1"]
[Date "2022.06.28"]
[WhiteClock "0:00:04"]
[BlackClock "0:00:20"]

1. e4 {[%clk 0:03:00]}  g6 {[%clk 0:02:58]} 2. d4 {[%clk 0:02:46]}  Bg7 {[%clk 0:02:58]} 3. Nc3 {[%clk 0:02:47]}  d6 {[%clk 0:02:57]} 4. Bg5 {[%clk 0:02:46]}  c5 {[%clk 0:02:53]} 5. Nf3 {[%clk 0:02:44]}  cxd4 {[%clk 0:02:51]} 6. Nxd4 {[%clk 0:02:43]}  Nc6 {[%clk 0:02:51]} 7. Be3 {[%clk 0:02:38]}  Nf6 {[%clk 0:02:47]} 8. Be2 {[%clk 0:02:37]}  O-O {[%clk 0:02:40]} 9. O-O {[%clk 0:02:36]}  d5 {[%clk 0:02:34]} 10. exd5 {[%clk 0:02:23]}  Nxd5 {[%clk 0:02:32]} 11. Nxd5 {[%clk 0:02:21]}  Qxd5 {[%clk 0:02:33]} 12. Bf3 {[%clk 0:02:14]}  Qa5 {[%clk 0:02:22]} 13. Nxc6 {[%clk 0:01:35]}  bxc6 {[%clk 0:02:23]} 14. c3 {[%clk 0:01:30]}  Rb8 {[%clk 0:02:16]} 15. Qc1 {[%clk 0:01:23]}  Ba6 {[%clk 0:02:07]} 16. Re1 {[%clk 0:01:20]}  c5 {[%clk 0:02:07]} 17. Bf4 {[%clk 0:01:10]}  e5 {[%clk 0:01:53]} 18. Bxe5 {[%clk 0:01:06]}  Bxe5 {[%clk 0:01:50]} 19. Rxe5 {[%clk 0:01:05]}  Qb6 {[%clk 0:01:39]} 20. b3 {[%clk 0:00:54]}  c4 {[%clk 0:01:34]} 21. b4 {[%clk 0:00:51]}  Qf6 {[%clk 0:01:31]} 22. Qe3 {[%clk 0:00:48]}  Rfd8 {[%clk 0:01:05]} 23. Re1 {[%clk 0:00:47]}  Rd3 {[%clk 0:01:02]} 24. Qxa7 {[%clk 0:00:39]}  Rbd8 {[%clk 0:00:58]} 25. Re8+ {[%clk 0:00:31]}  Kg7 {[%clk 0:00:53]} 26. Rxd8 {[%clk 0:00:27]}  Rxd8 {[%clk 0:00:52]} 27. a4 {[%clk 0:00:20]}  Qxc3 {[%clk 0:00:49]} 28. Qe3 {[%clk 0:00:17]}  Qxb4 {[%clk 0:00:42]} 29. Qe5+ {[%clk 0:00:13]}  Kg8 {[%clk 0:00:41]} 30. Bd5 {[%clk 0:00:11]}  Qxa4 {[%clk 0:00:31]} 31. Qf6 {[%clk 0:00:07]}  Rf8 {[%clk 0:00:24]} 32. h4 {[%clk 0:00:08]}  Qd7 {[%clk 0:00:22]} 33. Bxf7+ {[%clk 0:00:03]}  Qxf7 {[%clk 0:00:20]} 34. Qxa6 {[%clk 0:00:04]}  Qxf2+ {[%clk 0:00:20]} 35. Kh2 {[%clk 0:00:04]}  Qxe1 {[%clk 0:00:20]} 0-1


[Site "https://www.chess.com"]

[Event "Titled Tuesday Blitz June 28 Early 2022"]
[White "Valle Maytin, Luis Enrique"]
[Black "Gueci, Tea"]
[WhiteFideId "3503666"]
[BlackFideId "872342"]
[WhiteElo "2327"]
[BlackElo "2142"]
[Result "0-1"]
[Round "10"]
[TimeControl "180+1"]
[Date "2022.06.28"]
[WhiteClock "0:01:26"]
[BlackClock "0:00:57"]

1. e4 {[%clk 0:03:00]}  c5 {[%clk 0:02:56]} 2. Nf3 {[%clk 0:02:59]}  e6 {[%clk 0:02:57]} 3. d4 {[%clk 0:03:00]}  cxd4 {[%clk 0:02:57]} 4. Nxd4 {[%clk 0:03:01]}  Nf6 {[%clk 0:02:58]} 5. Nc3 {[%clk 0:03:01]}  d6 {[%clk 0:02:58]} 6. a3 {[%clk 0:03:01]}  Nc6 {[%clk 0:02:56]} 7. Be3 {[%clk 0:03:00]}  Be7 {[%clk 0:02:56]} 8. g4 {[%clk 0:03:00]}  Nxd4 {[%clk 0:02:54]} 9. Bxd4 {[%clk 0:02:58]}  e5 {[%clk 0:02:54]} 10. Be3 {[%clk 0:02:57]}  Bxg4 {[%clk 0:02:53]} 11. f3 {[%clk 0:02:57]}  Be6 {[%clk 0:02:52]} 12. Bb5+ {[%clk 0:02:55]}  Bd7 {[%clk 0:02:46]} 13. Bc4 {[%clk 0:02:55]}  a6 {[%clk 0:02:43]} 14. Qd2 {[%clk 0:02:53]}  b5 {[%clk 0:02:41]} 15. Bb3 {[%clk 0:02:53]}  Be6 {[%clk 0:02:41]} 16. Bd5 {[%clk 0:02:51]}  Bxd5 {[%clk 0:02:32]} 17. exd5 {[%clk 0:02:46]}  Rc8 {[%clk 0:02:28]} 18. Bg5 {[%clk 0:02:45]}  Nh5 {[%clk 0:02:25]} 19. Bxe7 {[%clk 0:02:37]}  Qxe7 {[%clk 0:02:26]} 20. O-O-O {[%clk 0:02:37]}  Nf4 {[%clk 0:02:25]} 21. Ne4 {[%clk 0:02:35]}  f5 {[%clk 0:02:20]} 22. Ng3 {[%clk 0:02:33]}  O-O {[%clk 0:02:20]} 23. Rhe1 {[%clk 0:02:31]}  Rc7 {[%clk 0:02:18]} 24. c3 {[%clk 0:02:30]}  a5 {[%clk 0:02:16]} 25. Kb1 {[%clk 0:02:27]}  g6 {[%clk 0:02:09]} 26. Rg1 {[%clk 0:02:24]}  Rc5 {[%clk 0:02:02]} 27. Qe3 {[%clk 0:02:15]}  b4 {[%clk 0:01:52]} 28. cxb4 {[%clk 0:02:14]}  axb4 {[%clk 0:01:53]} 29. axb4 {[%clk 0:02:14]}  Rb5 {[%clk 0:01:52]} 30. Qc3 {[%clk 0:02:11]}  Qf7 {[%clk 0:01:47]} 31. Qc6 {[%clk 0:02:06]}  Rxd5 {[%clk 0:01:46]} 32. Rxd5 {[%clk 0:02:02]}  Qxd5 {[%clk 0:01:47]} 33. Qxd5+ {[%clk 0:02:02]}  Nxd5 {[%clk 0:01:48]} 34. Rd1 {[%clk 0:02:02]}  Nxb4 {[%clk 0:01:45]} 35. Rxd6 {[%clk 0:02:02]}  Rc8 {[%clk 0:01:37]} 36. Ne2 {[%clk 0:01:59]}  Rc5 {[%clk 0:01:28]} 37. Nc3 {[%clk 0:01:57]}  Kg7 {[%clk 0:01:24]} 38. Rb6 {[%clk 0:01:52]}  Nc6 {[%clk 0:01:22]} 39. Na4 {[%clk 0:01:50]}  Ra5 {[%clk 0:01:13]} 40. Nc3 {[%clk 0:01:49]}  Nd4 {[%clk 0:01:11]} 41. f4 {[%clk 0:01:36]}  exf4 {[%clk 0:01:04]} 42. b4 {[%clk 0:01:35]}  Re5 {[%clk 0:01:03]} 43. Rd6 {[%clk 0:01:33]}  Nb5 {[%clk 0:00:59]} 44. Nd5 {[%clk 0:01:26]}  Rxd5 {[%clk 0:00:57]} 0-1


[Site "https://www.chess.com"]

[Event "Titled Tuesday Blitz June 28 Early 2022"]
[White "Yang, Kaiqi"]
[Black "Mogirzan, Matei-Valeriu"]
[WhiteFideId "8604398"]
[BlackFideId "1257455"]
[WhiteElo "2373"]
[BlackElo "1733"]
[Result "0-1"]
[Round "10"]
[TimeControl "180+1"]
[Date "2022.06.28"]
[WhiteClock "0:00:10"]
[BlackClock "0:00:07"]

1. d4 {[%clk 0:03:00]}  Nf6 {[%clk 0:02:59]} 2. c4 {[%clk 0:03:00]}  Nc6 {[%clk 0:02:55]} 3. d5 {[%clk 0:02:59]}  Nb8 {[%clk 0:02:49]} 4. Nc3 {[%clk 0:02:59]}  d6 {[%clk 0:02:49]} 5. e4 {[%clk 0:02:59]}  g6 {[%clk 0:02:50]} 6. Be2 {[%clk 0:02:50]}  Bg7 {[%clk 0:02:49]} 7. Nf3 {[%clk 0:02:51]}  Bg4 {[%clk 0:02:49]} 8. Nd2 {[%clk 0:02:50]}  Bxe2 {[%clk 0:02:48]} 9. Qxe2 {[%clk 0:02:51]}  Nbd7 {[%clk 0:02:48]} 10. O-O {[%clk 0:02:50]}  a5 {[%clk 0:02:48]} 11. b3 {[%clk 0:02:48]}  Nc5 {[%clk 0:02:43]} 12. Bb2 {[%clk 0:02:47]}  O-O {[%clk 0:02:42]} 13. Rab1 {[%clk 0:02:45]}  e5 {[%clk 0:02:38]} 14. a3 {[%clk 0:02:43]}  Nh5 {[%clk 0:02:34]} 15. g3 {[%clk 0:02:44]}  Qg5 {[%clk 0:02:21]} 16. Kh1 {[%clk 0:02:38]}  f5 {[%clk 0:02:19]} 17. b4 {[%clk 0:02:34]}  Nd7 {[%clk 0:02:12]} 18. Nb5 {[%clk 0:02:17]}  Rac8 {[%clk 0:01:58]} 19. exf5 {[%clk 0:02:06]}  gxf5 {[%clk 0:01:53]} 20. f4 {[%clk 0:01:48]}  Qh6 {[%clk 0:01:37]} 21. Qf3 {[%clk 0:01:17]}  Ndf6 {[%clk 0:00:29]} 22. Rg1 {[%clk 0:01:10]}  Ng4 {[%clk 0:00:19]} 23. Nf1 {[%clk 0:01:09]}  c6 {[%clk 0:00:08]} 24. dxc6 {[%clk 0:01:06]}  bxc6 {[%clk 0:00:08]} 25. Na7 {[%clk 0:01:00]}  e4 {[%clk 0:00:04]} 26. Qd1 {[%clk 0:00:55]}  Nf2+ {[%clk 0:00:04]} 27. Kg2 {[%clk 0:00:54]}  Nxd1 {[%clk 0:00:04]} 28. Rxd1 {[%clk 0:00:54]}  Rc7 {[%clk 0:00:04]} 29. Bxg7 {[%clk 0:00:53]}  Qxg7 {[%clk 0:00:05]} 30. Ne3 {[%clk 0:00:45]}  Nxf4+ {[%clk 0:00:05]} 31. Kh1 {[%clk 0:00:45]}  Nh3 {[%clk 0:00:04]} 32. Rgf1 {[%clk 0:00:45]}  Rxa7 {[%clk 0:00:04]} 33. Rxd6 {[%clk 0:00:45]}  Raf7 {[%clk 0:00:04]} 34. Rxc6 {[%clk 0:00:26]}  f4 {[%clk 0:00:05]} 35. Nd5 {[%clk 0:00:11]}  fxg3 {[%clk 0:00:05]} 36. Rxf7 {[%clk 0:00:10]}  Qxf7 {[%clk 0:00:05]} 37. Rf6 {[%clk 0:00:08]}  Qxf6 {[%clk 0:00:05]} 38. Nxf6+ {[%clk 0:00:08]}  Rxf6 {[%clk 0:00:06]} 39. hxg3 {[%clk 0:00:08]}  e3 {[%clk 0:00:06]} 40. Kg2 {[%clk 0:00:08]}  e2 {[%clk 0:00:06]} 41. Kxh3 {[%clk 0:00:09]}  e1=Q {[%clk 0:00:07]} 42. c5 {[%clk 0:00:09]}  Qe6+ {[%clk 0:00:07]} 43. Kg2 {[%clk 0:00:10]}  Qe4+ {[%clk 0:00:07]} 0-1


[Site "https://www.chess.com"]

[Event "Titled Tuesday Blitz June 28 Early 2022"]
[White "Yoo, Christopher Woojin"]
[Black "Seo, Jung Min"]
[WhiteFideId "30909694"]
[BlackFideId "1734687"]
[WhiteElo "2105"]
[BlackElo "2414"]
[Result "1-0"]
[Round "10"]
[TimeControl "180+1"]
[Date "2022.06.28"]
[WhiteClock "0:00:05"]
[BlackClock "0:00:02"]

1. e4 {[%clk 0:03:00]}  e5 {[%clk 0:03:00]} 2. Nf3 {[%clk 0:03:01]}  Nc6 {[%clk 0:03:00]} 3. Bb5 {[%clk 0:03:01]}  Nf6 {[%clk 0:03:00]} 4. d4 {[%clk 0:03:01]}  exd4 {[%clk 0:02:56]} 5. O-O {[%clk 0:03:01]}  a6 {[%clk 0:02:54]} 6. Ba4 {[%clk 0:03:01]}  b5 {[%clk 0:02:42]} 7. Bb3 {[%clk 0:02:51]}  Nxe4 {[%clk 0:02:42]} 8. Re1 {[%clk 0:02:30]}  d5 {[%clk 0:02:42]} 9. Nxd4 {[%clk 0:02:15]}  Nxd4 {[%clk 0:02:41]} 10. Qxd4 {[%clk 0:02:13]}  Be6 {[%clk 0:02:40]} 11. Nc3 {[%clk 0:01:52]}  c5 {[%clk 0:02:12]} 12. Qxd5 {[%clk 0:01:32]}  Bxd5 {[%clk 0:02:00]} 13. Bxd5 {[%clk 0:01:33]}  Be7 {[%clk 0:01:56]} 14. Bxe4 {[%clk 0:01:30]}  Ra7 {[%clk 0:01:43]} 15. Bc6+ {[%clk 0:01:29]}  Kf8 {[%clk 0:01:43]} 16. Bf4 {[%clk 0:01:29]}  Bf6 {[%clk 0:01:36]} 17. Rad1 {[%clk 0:01:20]}  Bd4 {[%clk 0:01:19]} 18. Bd6+ {[%clk 0:01:17]}  Kg8 {[%clk 0:01:17]} 19. Re8+ {[%clk 0:01:18]}  Qxe8 {[%clk 0:01:18]} 20. Bxe8 {[%clk 0:01:18]}  g6 {[%clk 0:01:14]} 21. Ne4 {[%clk 0:01:06]}  Kg7 {[%clk 0:01:12]} 22. Bc6 {[%clk 0:01:07]}  Bxb2 {[%clk 0:01:11]} 23. c3 {[%clk 0:01:00]}  Rc8 {[%clk 0:01:06]} 24. Bxc5 {[%clk 0:00:59]}  Rac7 {[%clk 0:01:04]} 25. Bd4+ {[%clk 0:01:00]}  Kf8 {[%clk 0:01:03]} 26. Bd5 {[%clk 0:00:59]}  b4 {[%clk 0:01:00]} 27. c4 {[%clk 0:00:54]}  Bxd4 {[%clk 0:00:59]} 28. Rxd4 {[%clk 0:00:55]}  a5 {[%clk 0:00:57]} 29. Kf1 {[%clk 0:00:34]}  a4 {[%clk 0:00:57]} 30. Rd3 {[%clk 0:00:31]}  Rxc4 {[%clk 0:00:42]} 31. Bxc4 {[%clk 0:00:30]}  Rxc4 {[%clk 0:00:43]} 32. f3 {[%clk 0:00:31]}  Rc2 {[%clk 0:00:40]} 33. Rd2 {[%clk 0:00:16]}  b3 {[%clk 0:00:38]} 34. axb3 {[%clk 0:00:16]}  axb3 {[%clk 0:00:36]} 35. Rd1 {[%clk 0:00:04]}  b2 {[%clk 0:00:32]} 36. Ke1 {[%clk 0:00:03]}  Rxg2 {[%clk 0:00:31]} 37. Nd2 {[%clk 0:00:03]}  Rxh2 {[%clk 0:00:29]} 38. Rb1 {[%clk 0:00:03]}  Rh1+ {[%clk 0:00:27]} 39. Nf1 {[%clk 0:00:03]}  Rh3 {[%clk 0:00:25]} 40. Kf2 {[%clk 0:00:03]}  Rh5 {[%clk 0:00:24]} 41. Rxb2 {[%clk 0:00:03]}  Re5 {[%clk 0:00:24]} 42. Ne3 {[%clk 0:00:03]}  h5 {[%clk 0:00:24]} 43. f4 {[%clk 0:00:03]}  Re4 {[%clk 0:00:23]} 44. Kf3 {[%clk 0:00:03]}  Re8 {[%clk 0:00:24]} 45. Rb7 {[%clk 0:00:03]}  Kg7 {[%clk 0:00:24]} 46. Nc4 {[%clk 0:00:03]}  Kf8 {[%clk 0:00:11]} 47. Ne5 {[%clk 0:00:02]}  Re7 {[%clk 0:00:10]} 48. Rb8+ {[%clk 0:00:02]}  Kg7 {[%clk 0:00:07]} 49. Rb6 {[%clk 0:00:03]}  Kf8 {[%clk 0:00:06]} 50. Nc4 {[%clk 0:00:03]}  Kg7 {[%clk 0:00:06]} 51. Ne3 {[%clk 0:00:03]}  Re6 {[%clk 0:00:06]} 52. Rb7 {[%clk 0:00:02]}  Kf8 {[%clk 0:00:06]} 53. Nc4 {[%clk 0:00:02]}  Re7 {[%clk 0:00:06]} 54. Rb5 {[%clk 0:00:03]}  Kg7 {[%clk 0:00:06]} 55. Ne3 {[%clk 0:00:03]}  Re6 {[%clk 0:00:06]} 56. Rg5 {[%clk 0:00:03]}  Kh6 {[%clk 0:00:05]} 57. Rg1 {[%clk 0:00:03]}  Kh7 {[%clk 0:00:04]} 58. Nc4 {[%clk 0:00:03]}  Re7 {[%clk 0:00:04]} 59. Nd6 {[%clk 0:00:03]}  Kg8 {[%clk 0:00:03]} 60. Ne4 {[%clk 0:00:03]}  Re6 {[%clk 0:00:04]} 61. f5 {[%clk 0:00:03]}  Re5 {[%clk 0:00:04]} 62. f6 {[%clk 0:00:03]}  Rf5+ {[%clk 0:00:03]} 63. Ke3 {[%clk 0:00:04]}  Kh7 {[%clk 0:00:03]} 64. Ra1 {[%clk 0:00:03]}  g5 {[%clk 0:00:04]} 65. Ra7 {[%clk 0:00:02]}  Kg6 {[%clk 0:00:04]} 66. Ra8 {[%clk 0:00:03]}  g4 {[%clk 0:00:04]} 67. Rg8+ {[%clk 0:00:03]}  Kh6 {[%clk 0:00:04]} 68. Kd4 {[%clk 0:00:03]}  Rf4 {[%clk 0:00:03]} 69. Ke5 {[%clk 0:00:03]}  Rf3 {[%clk 0:00:04]} 70. Nd6 {[%clk 0:00:03]}  Re3+ {[%clk 0:00:02]} 71. Kd4 {[%clk 0:00:04]}  Rf3 {[%clk 0:00:02]} 72. Nxf7+ {[%clk 0:00:04]}  Kh7 {[%clk 0:00:02]} 73. Rg7# {[%clk 0:00:05]} 1-0


[Site "https://www.chess.com"]